Cogmind - Beta 13 @@@ ROGUE MODE // 2024.04.25 @ 12:16:49 Player: Barbarossa Result: Destroyed by L-41 Fighter with Axe Performance ------------- Evolutions (3) 1500 Regions Visited (6) 1200 Robots Destroyed (136) 680 Value Destroyed (4108) 4108 Prototype IDs (9) 180 Alien Tech Used (0) 0 Bonus (3) 3 TOTAL SCORE: 7671 Bonus ------- High Alert Combat Kills 24 Follower Combat Kills 70 Friendly Fire -91 Cogmind --------- Core Integrity 0/700 Matter 280/300 Energy 32/100 System Corruption 4% Temperature Cool (0) Movement Core (1450) Ox28 Location -7/Lower Caves Parts ------- > --- POWER (1) -------- (None) > --- PROPULSION (4) --- (None) > --- UTILITY (4) ------ Coolant Injector Huge Storage Unit Advanced Targeting Computer > --- WEAPON (4) ------- Arc Projector > --- INVENTORY (25) --- Reinforced Deuterium Engine Enhanced Nuclear Core Aluminum Leg Subdweller Monowheel Improved Heat Sink Large Matter Pod (150) Large Matter Pod (150) Trap Scanner Subdweller Optics Improved Sensor Array Improved Signal Interpreter Advanced Targeting Computer Advanced Targeting Computer Advanced Targeting Computer Advanced Targeting Computer Kinecellerator Core Shielding Heavy Armor Plating Long-range Tractor Beam Improved Field Recycling Unit (0) Datajack Peak State ------------ > --- POWER ------------ Enhanced Nuclear Core > --- PROPULSION ------- Light Treads Light Treads Compact Wheel Armored Wheel > --- UTILITY ---------- Improved Heat Sink Huge Storage Unit Advanced Targeting Computer Improved Light Armor Plating > --- WEAPON ----------- Gauss Rifle Flak Gun Precision Assault Rifle Precision Assault Rifle > --- INVENTORY -------- Improved Deuterium Engine Enhanced Nuclear Core Enhanced Nuclear Core Subdweller Monowheel Coolant Injector Large Matter Pod Large Matter Pod Subdweller Optics Improved Sensor Array Improved Signal Interpreter Advanced Targeting Computer Advanced Targeting Computer Advanced Targeting Computer Advanced Targeting Computer Matter Filter Kinecellerator Heavy Armor Plating Long-range Tractor Beam Gatling Laser Precision Assault Rifle Precision Assault Rifle Heavy Rocket Launcher Datajack Plasma Cutter [Rating: 46] Favorites ----------- Power Cooled Ion Engine Engine Cooled Ion Engine Power Core Enhanced Nuclear Core Propulsion Light Treads Treads Light Treads Leg Aluminum Leg Wheel Compact Wheel Utility Huge Storage Unit Device Cooling System Storage Huge Storage Unit Processor Advanced Targeting Computer Protection Improved Light Armor Plating Weapon Precision Assault Rifle Energy Gun Gatling Laser Ballistic Gun Precision Assault Rifle Ballistic Cannon Slug Cannon Launcher Heavy Rocket Launcher Special Weapon Plasma Cutter Build | -11 -10 -9 -8 -7 -7 -7 ------- Run | Yrd Mat Mat Mat Fac Low Low Slots Evolved 6 | . . 2 2 2 . . Power . | . . . . . . . Propulsion 2 | . . 2 . . . . Utility 2 | . . . 2 . . . Weapon 2 | . . . . 2 . . Parts Attached 141 | 2 17 27 18 55 10 12 Power 18 | . 2 4 3 6 1 2 Engine 11 | . 2 3 1 4 . 1 Core 7 | . . 1 2 2 1 1 Reactor . | . . . . . . . Propulsion 41 | 2 5 11 9 13 1 . Treads 18 | . . 7 4 6 1 . Leg . | . . . . . . . Wheel 23 | 2 5 4 5 7 . . Hover . | . . . . . . . Flight . | . . . . . . . Utility 27 | . 4 2 3 14 3 1 Device 14 | . 2 1 1 7 3 . Storage 3 | . 2 1 . . . . Processor 3 | . . . 2 1 . . Hackware . | . . . . . . . Protection 7 | . . . . 6 . 1 Artifact . | . . . . . . . Weapon 55 | . 6 10 3 22 5 9 Energy Gun 12 | . 3 . 3 3 1 2 Energy Cannon . | . . . . . . . Ballistic Gun 40 | . 3 10 . 19 2 6 Ballistic Cannon 1 | . . . . . 1 . Launcher 1 | . . . . . 1 . Special Weapon 1 | . . . . . . 1 Impact Weapon . | . . . . . . . Slashing Weapon . | . . . . . . . Piercing Weapon . | . . . . . . . Special Melee Weapon . | . . . . . . . Unidentified Prototypes 5 | . . 1 1 3 . . Parts Lost 66 | . 11 10 5 14 8 18 Power 7 | . 2 2 . . . 3 Propulsion 25 | . 5 5 4 6 3 2 Utility 7 | . . . . 3 2 2 Weapon 27 | . 4 3 1 5 3 11 Highest Loss Streak 8 | . 4 4 2 5 8 7 To Critical Strikes . | . . . . . . . Average Slot Usage (%) 86 | . 85 92 96 95 71 51 Engine 6 | . 12 8 6 6 . . Core 2 | . . . 2 . 7 5 Treads 12 | . . 18 21 14 4 3 Wheel 14 | . 23 20 12 12 8 7 Device 10 | . 6 11 18 8 9 7 Storage 9 | . 14 11 9 7 7 7 Processor 4 | . . . 9 4 7 7 Protection 2 | . . . . 8 1 2 Energy Gun 4 | . 6 3 4 3 7 . Ballistic Gun 17 | . 21 17 12 25 12 6 Naked Turns . | . . . . . . . Heaviest Build 111 | 13 48 95 96 110 111 111 Greatest Support 80 | 32 36 36 80 28 28 16 Greatest Overweight (x) 34 | . 2 5 9 34 6 6 Average Overweight (x) 3 | . 1 2 3 5 5 5 Largest Inventory Capacity 25 | 8 20 25 25 25 25 25 Average Capacity 23 | 8 16 24 25 25 25 25 Most Carried 25 | 8 20 25 25 25 25 25 Average Carried 22 | 6 13 22 24 24 23 23 Final Capacity 25 | 8 20 25 25 25 25 25 Final Carried 25 | 6 19 25 25 25 25 22 Class Distribution -------------------- 44% | Mutant 24% | Scavenger-Mutant 17% | Scavenger-Gunner 9% | Scavenger-Tank 4% | Gunner Dominant Class ---------------- Mutant | -10/Materials Scavenger-Mutant | -9/Materials Scavenger-Mutant | -8/Materials Scavenger-Gunner | -7/Factory Mutant | -7/Lower Caves Mutant | -7/Lower Caves Resources | -11 -10 -9 -8 -7 -7 -7 ----------- Run | Yrd Mat Mat Mat Fac Low Low Matter Collected 4504 | 201 690 674 566 1647 492 234 Remotely 921 | . . . 565 356 . . Salvage Created 5617 | 97 861 1072 857 2039 474 217 Parts 279 | 2 36 67 43 104 14 13 Haulers Intercepted 8 | . 2 1 1 4 . . Recyclers Shooed 8 | . 2 4 1 1 . . Parts Field Recycled . | . . . . . . . Retrieved Matter . | . . . . . . . Parts Self-Destructed 28 | . . . . . 13 15 Prevented . | . . . . . . . Kills | -11 -10 -9 -8 -7 -7 -7 ------- Run | Yrd Mat Mat Mat Fac Low Low Combat Hostiles Destroyed 97 | . 12 22 12 30 15 6 Guns 91 | . 11 22 12 30 10 6 Cannons 1 | . . . . . 1 . AOE 5 | . 1 . . . 4 . Classes Destroyed 12 | 1 4 5 1 1 . . Worker 6 | . . . 1 5 . . Builder 3 | . . 1 1 1 . . Hauler 8 | . 2 1 1 4 . . Recycler 12 | 1 4 3 1 3 . . Operator 2 | . . 1 . 1 . . Watcher 8 | . 2 4 1 1 . . Swarmer 25 | . 3 9 . 4 7 2 Grunt 45 | . 9 6 7 16 4 3 Brawler 3 | . . 1 . 1 1 . Duelist 4 | . . 1 . 1 1 1 Sentry 17 | . . 5 5 5 2 . Programmer 3 | . . . . 3 . . Best Kill Streak 9 | 1 3 4 2 5 9 4 Combat Bots Only 9 | . 3 4 2 5 9 4 Max Kills in Single Turn 4 | 1 1 2 1 2 4 2 Gunslinging 2 | . . 1 . 1 2 1 Exploded 4 | . 1 . . . 4 . Melee . | . . . . . . . Uniques/NPCs Destroyed . | . . . . . . . Combat | -11 -10 -9 -8 -7 -7 -7 -------- Run | Yrd Mat Mat Mat Fac Low Low Hostile Shots Fired 916 | . 102 213 65 317 89 130 Missed 277 | . 24 62 16 104 28 43 Damage Taken 8773 | . 964 1799 721 2719 941 1629 Core 1287 | . 196 278 105 301 45 362 Absorbed by Shields . | . . . . . . . Redirected to Shielding 106 | . . . . 106 . . Regen/Repaired (Parts) 158 | . 29 129 . . . . Core Remaining (%) 57 | 100 21 30 80 . . . Volleys Fired 433 | 4 104 130 55 96 15 29 Largest 4 | 2 2 2 2 4 4 4 Hottest 201 | 60 60 63 117 201 189 189 Shots Fired 976 | 8 191 260 108 322 49 38 Gun 964 | 8 191 260 108 322 41 34 Cannon 10 | . . . . . 6 4 Launcher 2 | . . . . . 2 . Special . | . . . . . . . Kinetic 804 | 4 169 203 86 271 35 36 Thermal 145 | . 2 57 22 51 12 1 Explosive 2 | . . . . . 2 . Electromagnetic 25 | 4 20 . . . . 1 Robot Hit Streak 18 | 3 11 18 12 15 11 16 Robot Miss Streak 10 | 2 5 10 3 6 8 3 Penetration Max 1 | . . . . 1 . . Secondary Targets 16 | . 1 3 . 8 3 1 Max Gunslinging Chain 2 | . 1 1 . 2 2 1 Shots Hit Robots 655 | 4 128 155 80 224 32 32 Core Hits 296 | 2 49 60 34 89 47 15 Critical Kills 4 | . 1 1 . 1 . 1 Critical Parts Destroyed 4 | . 2 1 . . . 1 Critical Strikes 15 | . 4 2 2 5 . 2 Burn 6 | . . . 2 4 . . Destroy 8 | . 3 2 . 1 . 2 Corrupt 1 | . 1 . . . . . Melee Attacks . | . . . . . . . Impact . | . . . . . . . Slashing . | . . . . . . . Piercing . | . . . . . . . Sneak Attacks . | . . . . . . . Combat Hostiles . | . . . . . . . Follow-up Attacks . | . . . . . . . Damage Inflicted 11064 | 33 1141 2024 1289 4588 1320 669 Guns 10290 | 33 1115 2024 1289 4588 715 526 Cannons 271 | . . . . . 128 143 Explosions 503 | . 26 . . . 477 . Melee . | . . . . . . . Ramming . | . . . . . . . Kinetic 8714 | 21 917 1594 994 3966 575 647 Thermal 1662 | . 37 430 295 622 268 10 Explosive 477 | . . . . . 477 . Electromagnetic 211 | 12 187 . . . . 12 Impact . | . . . . . . . Slashing . | . . . . . . . Piercing . | . . . . . . . Highest Corruption 4 | . . . . 3 4 4 Average Corruption 3 | . . . . 1 4 4 Corruption Purged 5 | . . . . 5 . . Corruption Blocked . | . . . . . . . Effects 45 | . . . . 6 20 19 Message Errors 12 | . . . . 2 5 5 Matter Fused 15 | . . . . 1 7 7 Heat Flow Errors 4 | . . . . . 2 2 Energy Discharges 4 | . . . . . 2 2 Parts Fused 1 | . . . . . 1 . Data Loss (minor) 4 | . . . . . 2 2 Data Loss (major) 2 | . . . . 1 1 . Alerts 1 | . . . . 1 . . Weapon Failures 2 | . . . . 1 . 1 Overload Shots . | . . . . . . . Overflow Damage 13 | . 2 . . . 11 . Projectiles . | . . . . . . . Explosions 13 | . 2 . . . 11 . Melee . | . . . . . . . Knockbacks 3 | . . . . . . 3 Impact . | . . . . . . . Kinetic 3 | . . . . . . 3 Secondary . | . . . . . . . Self-Inflicted Damage 21 | . . . . . 21 . Shots 1 | . . . . . 1 . Rammed . | . . . . . . . Targets Rammed . | . . . . . . . Kicked . | . . . . . . . Crushed . | . . . . . . . Highest Temperature 625 | 20 162 26 5 625 249 199 Average Temperature 112 | 13 59 7 4 172 99 114 Received Heat Transfer 2841 | . 534 591 450 750 192 324 Effects 13 | . . . . 13 . . Shutdowns 2 | . . . . 2 . . Energy Bleed 2 | . . . . 2 . . Interference 3 | . . . . 3 . . Matter Decay 2 | . . . . 2 . . Short Circuit 1 | . . . . 1 . . Damage (minor) 1 | . . . . 1 . . Damage (major) 2 | . . . . 2 . . Siege Activations . | . . . . . . . Robots Corrupted . | . . . . . . . Combat Hostiles . | . . . . . . . Parts Fried . | . . . . . . . Impact Corruptions . | . . . . . . . Robots Melted . | . . . . . . . Combat Hostiles . | . . . . . . . Parts Melted 8 | . . . 5 2 1 . Heat Transferred 4154 | . 75 975 703 1776 600 25 Parts Sabotaged . | . . . . . . . Parts Stolen . | . . . . . . . Parts Stripped . | . . . . . . . Power Chain Reactions 1 | . 1 . . . . . Alert | -11 -10 -9 -8 -7 -7 -7 ------- Run | Yrd Mat Mat Mat Fac Low Low Peak Influence 422 | 5 203 313 232 422 . . Initial 42 | . 3 26 21 42 . . Average 144 | 3 95 118 90 236 . . Maximum Alert Level 2 | . 1 1 1 2 . . Low Security (%) 69 | 100 96 76 87 34 . . Level 1 27 | . 3 23 12 56 . . Level 2 2 | . . . . 8 . . Level 3 . | . . . . . . . Level 4 . | . . . . . . . Level 5 . | . . . . . . . High Security . | . . . . . . . Max Security . | . . . . . . . Squads Dispatched 19 | . 2 4 2 10 . 1 Investigation 4 | . 1 1 2 . . . Extermination 2 | . . . . 2 . . Reinforcement 8 | . 1 3 . 4 . . Assault 1 | . . . . . . 1 Garrison 4 | . . . . 4 . . Intercept . | . . . . . . . Searches Triggered . | . . . . . . . Construction Impeded . | . . . . . . . Haulers Reinforced 2 | . . . . 2 . . Active Scanning Responses . | . . . . . . . Cargo Convoy Interrupts . | . . . . . . . Stealth | -11 -10 -9 -8 -7 -7 -7 --------- Run | Yrd Mat Mat Mat Fac Low Low Distress Signals 11 | . . 3 2 6 . . Communications Jammed . | . . . . . . . Distress Signals . | . . . . . . . Times Spotted 156 | . 22 44 18 40 17 15 Peak Tracking Total 9 | . 4 7 4 5 9 8 Tactical Retreats 9 | . 4 2 . 2 . 1 Traps | -11 -10 -9 -8 -7 -7 -7 ------- Run | Yrd Mat Mat Mat Fac Low Low Traps Triggered 3 | . . 1 . 2 . . Indirectly . | . . . . . . . Trap Hack Attempts . | . . . . . . . Triggered . | . . . . . . . Disarmed . | . . . . . . . Reprogrammed . | . . . . . . . Reused . | . . . . . . . Traps Extracted . | . . . . . . . Installed . | . . . . . . . Triggered . | . . . . . . . Machines | -11 -10 -9 -8 -7 -7 -7 ---------- Run | Yrd Mat Mat Mat Fac Low Low Machines Disabled 4 | . . 1 1 1 1 . Max in Single Turn 1 | . . 1 1 1 1 . Machines Repaired . | . . . . . . . Machines Dismantled . | . . . . . . . Machines Sabotaged . | . . . . . . . Overloaded Fab Kills . | . . . . . . . Hacking | -11 -10 -9 -8 -7 -7 -7 --------- Run | Yrd Mat Mat Mat Fac Low Low Machines Accessed 23 | . 8 9 5 1 . . Terminals 18 | . 7 8 2 1 . . Fabricators . | . . . . . . . Repair Stations 4 | . 1 1 2 . . . Recycling Units . | . . . . . . . Scanalyzers 1 | . . . 1 . . . Garrison Access . | . . . . . . . Total Hacks 78 | . 26 35 14 3 . . Successful 44 | . 15 23 5 1 . . Failed 34 | . 11 12 9 2 . . Catastrophic 2 | . 1 1 . . . . Database Lockouts . | . . . . . . . Manual 46 | . 18 24 4 . . . Terminals 60 | . 22 28 7 3 . . Fabricators . | . . . . . . . Repair Stations 15 | . 4 7 4 . . . Recycling Units . | . . . . . . . Scanalyzers 3 | . . . 3 . . . Garrison Access . | . . . . . . . Terminal Hacks 16 | . 5 9 1 1 . . Part Schematic 3 | . 1 2 . . . . Prototype ID Bank 2 | . 1 1 . . . . Open DSF 1 | . . . . 1 . . Terminal Index 2 | . 1 1 . . . . Unreport Threat 2 | . . 2 . . . . Locate Traps 3 | . 2 . 1 . . . Recall Investigation 1 | . . 1 . . . . Hauler Manifests 1 | . . 1 . . . . Registered Components 1 | . . 1 . . . . Fabricator Hacks . | . . . . . . . Repair Station Hacks 10 | . 3 6 1 . . . Scan Component 6 | . 2 3 1 . . . Repair 4 | . 1 3 . . . . Recycling Unit Hacks . | . . . . . . . Scanalyzer 1 | . . . 1 . . . Insert Component 1 | . . . 1 . . . Garrison Access Hacks . | . . . . . . . Unauthorized Hacks 16 | . 6 8 2 . . . Terminals 16 | . 6 8 2 . . . Botnet 16 | . 6 8 2 . . . Fabricators . | . . . . . . . Repair Stations . | . . . . . . . Recycling Units . | . . . . . . . Scanalyzers . | . . . . . . . Garrison Access . | . . . . . . . Data Cores Recovered . | . . . . . . . Used . | . . . . . . . Hacking Detections 21 | . 8 8 5 . . . Full Trace Events 3 | . 1 . 2 . . . Feedback Events . | . . . . . . . Feedback Blocked . | . . . . . . . Robot Schematics Acquired . | . . . . . . . Robots Built . | . . . . . . . Authchips . | . . . . . . . Time . | . . . . . . . Total Robot Build Rating . | . . . . . . . Part Schematics Acquired 3 | . 1 2 . . . . Parts Built . | . . . . . . . Authchips . | . . . . . . . Time . | . . . . . . . Total Part Build Rating . | . . . . . . . Parts Repaired 4 | . 1 3 . . . . Time 104 | . 26 78 . . . . Parts Recycled . | . . . . . . . Recycled Matter . | . . . . . . . Retrieved Matter . | . . . . . . . Retrieved Components . | . . . . . . . Parts Scanalyzed . | . . . . . . . Part Schematics Acquired . | . . . . . . . Parts Damaged . | . . . . . . . Bothacking | -11 -10 -9 -8 -7 -7 -7 ------------ Run | Yrd Mat Mat Mat Fac Low Low Used RIF Installer . | . . . . . . . Robots Hacked . | . . . . . . . Non-combat . | . . . . . . . Combat . | . . . . . . . Robot Hacks Applied . | . . . . . . . Relay Couplers Released . | . . . . . . . Fabnet Peak Effective % . | . . . . . . . Robots Rewired 4 | . . . . 2 2 . Allies Hacked . | . . . . . . . Hacks Repelled . | . . . . . . . Allies | -11 -10 -9 -8 -7 -7 -7 -------- Run | Yrd Mat Mat Mat Fac Low Low Total Allies 4 | . . . . 2 2 . Largest Group 2 | . . . . 1 2 1 Highest-Rated Group 36 | . . . . 30 36 16 Highest-Rated Ally 30 | . . . . 30 20 16 Total Orders . | . . . . . . . Ally Attacks 25 | . . . . 13 11 1 Total Damage 285 | . . . . 136 134 15 Kills 2 | . . . . 1 1 . Allies Corrupted 1 | . . . . 1 . . Allies Melted . | . . . . . . . Intel | -11 -10 -9 -8 -7 -7 -7 ------- Run | Yrd Mat Mat Mat Fac Low Low Robot Analysis Total . | . . . . . . . Derelict Logs Recovered . | . . . . . . . Drone Launches . | . . . . . . . Drone Recoveries . | . . . . . . . Exploration | -11 -10 -9 -8 -7 -7 -7 ------------- Run | Yrd Mat Mat Mat Fac Low Low Turns Passed 7178 | 37 924 1451 1308 1729 1047 682 Spaces Moved 3334 | 13 531 562 622 718 549 339 Core 1 | . . . . 1 . . Treads 136 | . . 21 113 2 . . Legs 8 | 8 . . . . . . Wheels 3189 | 5 531 541 509 715 549 339 Hover . | . . . . . . . Flight . | . . . . . . . Fastest Speed 95 | 100 95 117 135 140 140 175 Average Speed 155 | 112 106 153 163 164 175 175 Slowest Speed 1750 | 120 130 480 480 1750 190 190 Overloaded Moves . | . . . . . . . Propulsion Burnouts . | . . . . . . . Robots Hopped . | . . . . . . . Cave-ins Triggered . | . . . . . . . Exploration Rate (%) 42 | 2 75 53 40 20 62 44 Regions Visited 6 Branch Regions 2 Pre-discovered Areas . | . . . . . . . Known Exits Taken 1 | . . . 1 . . . Unknown Exits Taken 5 | 1 1 1 . 1 1 . Scrap Searched 4 | . . . . . 3 1 Spaces Dug . | . . . . . . . Terrain Destroyed 22 | . . . . 2 20 . Melee . | . . . . . . . Projectile 4 | . . . . 1 3 . AOE 17 | . . . . . 17 . Terrain Rammed . | . . . . . . . Walls Destroyed . | . . . . . . . Machines Disabled . | . . . . . . . Actions | -11 -10 -9 -8 -7 -7 -7 --------- Run | Yrd Mat Mat Mat Fac Low Low Total 4569 | 29 737 931 820 1066 595 391 Wait 392 | 3 46 163 93 85 . 2 Move 3328 | 12 530 561 621 717 548 339 Hop . | . . . . . . . Pick Up 134 | 4 30 31 14 39 7 9 Fast Attach 25 | . 4 2 6 11 2 . Attach 62 | . 10 14 4 17 5 12 Detach 1 | . . 1 . . . . Swap 55 | 2 3 11 8 28 3 . Drop 98 | 4 10 18 19 45 2 . Fire 433 | 4 104 130 55 96 15 29 Melee . | . . . . . . . Ram . | . . . . . . . Kick . | . . . . . . . Crush . | . . . . . . . Escape Stasis 8 | . . . . 8 . . Rewire 33 | . . . . 20 13 . Trap . | . . . . . . . Miscellaneous . | . . . . . . . Route ------- -11/Scrapyard -10/Materials (discovered 2 exits: *Mat / [*Min]) -9/Materials (discovered 2 exits: *Mat / [*Min]) -8/Materials -7/Factory -7/Lower Caves -7/Lower Caves History --------- Turn | Location | Event 1 | -11/Scrapyard | Discovered new exit (range 3) 38 | -11/Scrapyard | Entered Materials 282 | -10/Materials | Lost 4 parts (2n2w) 317 | -10/Materials | Build established: Mutant 322 | -10/Materials | Core integrity fell below 50% 482 | -10/Materials | Discovered new exit (range 10) 638 | -10/Materials | Derelicts attacked the area 764 | -10/Materials | Lost 3 parts (1p2n) 858 | -10/Materials | Discovered new exit (range 15) 940 | -10/Materials | Repaired Heat Sink 962 | -10/Materials | Entered another Materials area 962 | -9/Materials | Evolved 2 slots: Propulsion x2 1009 | -9/Materials | Repaired Com. Wheel 1037 | -9/Materials | Repaired Lgt. Assault Rifle 1065 | -9/Materials | Repaired Lgt. Assault Rifle 1116 | -9/Materials | Build established: Scavenger-Mutant 1250 | -9/Materials | Discovered new exit (range 12) 1537 | -9/Materials | Lost 4 parts (1p2n1w) 1610 | -9/Materials | Lost 3 parts (1n2w) 1894 | -9/Materials | Core integrity fell below 50% 2250 | -9/Materials | Build established: Mutant 2348 | -9/Materials | Discovered new exit (range 4) 2413 | -9/Materials | Entered another Materials area 2413 | -8/Materials | Evolved 2 slots: Utility x2 3203 | -8/Materials | Build established: Scavenger-Mutant 3240 | -8/Materials | Discovered new exit (range 16) 3719 | -8/Materials | Identified exit to Factory 3721 | -8/Materials | Entered Factory 3721 | -7/Factory | Evolved 2 slots: Weapon x2 3893 | -7/Factory | Garrison activated, responded to threat 3979 | -7/Factory | Lost 3 parts (2n1w) 4026 | -7/Factory | Build established: Scavenger-Gunner 4089 | -7/Factory | Lost 5 parts (2n1u2w) 4245 | -7/Factory | Garrison activated, responded to threat 4398 | -7/Factory | Build established: Scavenger-Tank 5068 | -7/Factory | Build established: Scavenger-Gunner 5197 | -7/Factory | Discovered new exit (range 12) 5450 | -7/Factory | Entered Lower Caves 5665 | -7/Lower Caves | Attracted the attention of an 0b10 outpost 5718 | -7/Lower Caves | Destroyed 9 combat bots 5721 | -7/Lower Caves | Lost 8 parts (3n2u3w) 5960 | -7/Lower Caves | Build established: Mutant 6308 | -7/Lower Caves | Attracted the attention of an 0b10 checkpoint 6460 | -7/Lower Caves | Encountered a Warlord checkpoint 6463 | -7/Lower Caves | Discovered new exit (range 12) 6478 | -7/Lower Caves | Build established: Gunner 6497 | -7/Lower Caves | Entered another Lower Caves area 6497 | -7/Lower Caves | Accompanied by 1 ally 6526 | -7/Lower Caves | Core integrity fell below 50% 6574 | -7/Lower Caves | Lost 7 parts (1u6w) 6729 | -7/Lower Caves | Encountered a Warlord checkpoint 6832 | -7/Lower Caves | Build established: Mutant 6856 | -7/Lower Caves | Lost 5 parts (1p1n1u2w) 6892 | -7/Lower Caves | Core integrity fell below 20% 7155 | -7/Lower Caves | Attracted the attention of an 0b10 outpost 7179 | -7/Lower Caves | Destroyed by L-41 Fighter with Axe Last Messages --------------- 07031_ Searching scrap... 07031_ Found Arc Projector. 07031_ Found Weight Redist. System. 07031_ Found Imp. Field Recycling Unit. 07031_ Found 33 Matter. 07034_ Acquired Arc Projector. 07035_ System corrupted: Heat flow error (+112). 07037_ Acquired Imp. Field Recycling Unit. 07072_ BN1I0 X&622% TZ74:8 S9DM0M 07118_ System corrupted: Matter fused (-7). 07154_ Slug penetrates Wall. 07155_ Y-64 Sentinel: "DETECTED UNIDENTIFIED DERELICT." 07159_ Y-64 Sentinel: "REQUESTING BACKUP." 07165_ Slug penetrates Wall. 07170_ Autogun destroyed. 07174_ Lgt. Nuclear Core destroyed. 07176_ Hvy. Laser destroyed. 07176_ Plasma Cutter destroyed. 07177_ Com. Wheel destroyed. Map ----- +----------------------------------------------------+ | ?????????????????????????????????????????????????? | | ?????????????????????????????????????????????????? | | ?????????????????????????????????????????????????? | | ?????????????????????????????????????????????????? | | ?????????????????????????????????????????????????? | | ?????????????????????????????????????????????????? | | ?????????????????????????????????????????????????? | | ?????????????????????##?#????????????????????????? | | ???????????????????## ## ??????????????????????? | | ?????????????????### #????????????????????? | | ????????????????## ##???????????????????? | | ????????????????? ????????????????????? | | ????????????????? #????????????????????? | | ??????????###????# # #?????##??????????????? | | ??????????#""??""# # ##???? ??????????????? | | ??????????? ?? # #???# #??????????????? | | ???????????? ???+ ????# #??????#???????? | | ??????????###//??# #?????# #???? ##??????? | | ??????????# ??#bs ######## #### ?????? | | ??????????# ?# ## ????????? | | ????????#%## ## ## ???????????? | | ????????#! b ## #### #??????????????? | | ? #$ ##### ##?????????????? | | ??????????!!!??????###sY ####??????????? | | ?????????##??????????# ll #### ###????????? | | ?????????????????????# @ #??## ###??????? | | ????????????????????# #??## #??????? | | ????????????????????## #?# ### #?????? | | ?????????????????????## #?# ##??? #?????? | | ??????????????????????### ## #??????#?????? | | ????????????????????????# ## #????????????? | | ?????????????????????? ## #????????????? | | ????????????????????? ## ####?????????? | | ??????????????????????? ### #?????????? | | ??????????????????????? #?#### #?????????? | | ?????????????????????? ## #????# #?????????? | | ??????????????????????? ### #????# #?????????? | | ??????????????????????? ??## #????# #####?????? | | ???????????????????????? ????###????# #?????? | | ????????????????????????##???????????##### #?????? | | ?????????????????????????????????????????# #?????? | | ?????????????????????????????????????????# #####?? | | ?????????????????????????????????????????# #?? | | ?????????????????????????????????????????##### #?? | | ??????????????????????????????????????##???### ##? | | ??????????????????????????????????????# #### ## | | ??????????????????????????????????????# ## | | ??????????????????????????????????????# | | ??????????????????????????????????###### #### | | ??????????????????????????????????# "" #??# | +----------------------------------------------------+ Best States ------------- Heat Dissipation 56 Coolant Potential 65 Energy Generation 17 Energy Capacity 300 Matter Stores 300 Matter Capacity 300 Sight Range 16 Terrain Scan Density 10 Armor Coverage 150 Propulsion Shielding 66 Evasion (%) 45 Targeting Accuracy 8 Recoil Reduction 4 Matter Filtering 30 Item Schematics ----------------- Cargo Storage Unit | -10/Materials | Hacked Spread Laser | -9/Materials | Hacked Com. Wheel | -9/Materials | Hacked Robot Schematics ------------------ None Fabricated ------------ Nothing Alien Tech Used ----------------- None Achievements -------------- Gunslinger Challenges ------------ None Game ------ Seed MachineTractorSheargun Manual? 0 Play Time 01:01:57 Cumulative 125.5 hours Start 2024.04.25 @ 11:14:07 End 2024.04.25 @ 12:16:49 Sessions 1 Manual Loads 0 Difficulty Rogue Special Mode None Game No. 243 Rogue 243 Adventurer 0 Explorer 0 Win Type - Total 0 Types 0/0/0/0/0/0/0/0/0 Lore% 33 Gallery% 46 Achievement% 32 Wizard Run 0 Options --------- Layout 1 ASCII 0 Keyboard 0 Movement Mouse Keybinds 0 Fullscreen 1 Font 24/Smallcaps Map View 50x40 Zoom Use 0% Tactical HUD 1 Map Filters NONE Filters NONE Steam 1 RUN: d4161468-2e61-4f3d-bbfb-6ccc9e694e36